Cogmind - Beta 13 X2 @@@ ROGUE MODE // 2024.01.28 @ 12:08:42 Player: Hermelin Result: Destroyed by P-60 Hacker with Shock Rifle Performance ------------- Evolutions (4) 2000 Regions Visited (5) 1000 Robots Destroyed (58) 290 Value Destroyed (2073) 2073 Prototype IDs (18) 360 Alien Tech Used (0) 0 Bonus (569) 569 TOTAL SCORE: 6292 Bonus ------- High Alert Combat Kills 809 Follower Combat Kills 302 Friendly Fire -542 Cogmind --------- Core Integrity 0/850 Matter 255/300 Energy 100/100 System Corruption 13% Temperature Cool (0) Movement Core (250) Ox4 Location -6/Factory Parts ------- > --- POWER (1) -------- (None) > --- PROPULSION (2) --- (None) > --- UTILITY (10) ----- Scrap Engine Medium Storage Unit Improved Melee Analysis Suite > --- WEAPON (2) ------- Autogun > --- INVENTORY (10) --- Multitool Peak State ------------ > --- POWER ------------ Neutrino Core > --- PROPULSION ------- Cargo Legs > --- UTILITY ---------- Armored Scrap Engine Advanced Heat Sink Medium Storage Unit Improved Sensor Array Advanced Signal Interpreter Improved Melee Analysis Suite Core Analyzer Armor Integrity Analyzer Matter Filter Improved Medium Armor Plating > --- WEAPON ----------- Improved Heavy Machine Gun Kinetic Assault Construct/G > --- INVENTORY -------- Myomer Leg Actuator Array Bore Cannon Multitool Great Maul Makeshift Axe Greatsword Greatsword [Rating: 87] Favorites ----------- Power Ion Engine Engine Ion Engine Power Core Neutrino Core Propulsion Cargo Legs Treads Light Treads Leg Cargo Legs Wheel Wheel Utility Small Storage Unit Device Subdweller Optics Storage Small Storage Unit Processor Armor Integrity Analyzer Protection Makeshift Light Armor Plating Weapon Bore Cannon Energy Gun Riot Gun Ballistic Gun Heavy Battle Rifle Ballistic Cannon Bore Cannon Launcher Rocket Launcher Special Weapon Multitool Slashing Weapon Makeshift Axe Build | -11 -10 -10 -10 -8 -6 ------- Run | Yrd Mat Min Sub Rec Fac Slots Evolved 8 | . . . . . 8 Power . | . . . . . . Propulsion . | . . . . . . Utility 8 | . . . . . 8 Weapon . | . . . . . . Parts Attached 59 | 7 . 2 24 1 25 Power 7 | 1 . . 6 . . Engine 6 | 1 . . 5 . . Core 1 | . . . 1 . . Reactor . | . . . . . . Propulsion 6 | 2 . 1 2 . 1 Treads 2 | 1 . 1 . . . Leg 2 | . . . 1 . 1 Wheel 2 | 1 . . 1 . . Hover . | . . . . . . Flight . | . . . . . . Utility 21 | 2 . 1 5 1 12 Device 11 | 1 . 1 1 1 7 Storage 2 | 1 . . . . 1 Processor 4 | . . . 1 . 3 Hackware . | . . . . . . Protection 4 | . . . 3 . 1 Artifact . | . . . . . . Weapon 25 | 2 . . 11 . 12 Energy Gun 4 | . . . 2 . 2 Energy Cannon . | . . . . . . Ballistic Gun 7 | 2 . . 2 . 3 Ballistic Cannon 5 | . . . 3 . 2 Launcher 2 | . . . 1 . 1 Special Weapon 2 | . . . 2 . . Impact Weapon . | . . . . . . Slashing Weapon 5 | . . . 1 . 4 Piercing Weapon . | . . . . . . Special Melee Weapon . | . . . . . . Unidentified Prototypes 3 | . . . . . 3 Corrupted Parts 3 | . . . 3 . . System Corruption 4 | . . . 4 . . Parts Lost 26 | . . 1 4 . 21 Power 6 | . . . 2 . 4 Propulsion 4 | . . . . . 4 Utility 8 | . . 1 . . 7 Weapon 8 | . . . 2 . 6 Highest Loss Streak 19 | . . 1 2 . 19 To Critical Strikes . | . . . . . . Average Slot Usage (%) 73 | . 100 97 70 75 71 Engine 7 | . 14 14 10 . . Core 2 | . . . . 12 5 Treads 1 | . 14 14 . . . Leg 9 | . . . 10 12 6 Wheel 1 | . 14 14 . . . Device 8 | . 14 11 5 11 19 Storage 9 | . 14 14 11 . 5 Processor 4 | . . . . 12 18 Protection 7 | . . . 10 . 3 Energy Gun 1 | . . . 2 . . Ballistic Gun 5 | . 28 28 2 . 5 Ballistic Cannon 7 | . . . 8 12 1 Slashing Weapon 5 | . . . 4 12 3 Naked Turns . | . . . . . . Heaviest Build 52 | 14 14 14 35 35 52 Greatest Support 55 | 10 10 20 55 55 55 Greatest Overweight (x) 2 | 1 1 1 2 . . Average Overweight (x) . | . 1 . . . . Largest Inventory Capacity 10 | 8 8 8 8 8 10 Average Capacity 7 | 7 8 8 8 5 9 Most Carried 10 | 5 8 8 8 8 10 Average Carried 7 | 3 7 7 7 5 7 Final Capacity 10 | 8 8 8 8 5 10 Final Carried 8 | 5 8 8 8 5 1 Scrap Engine Consumption 31 | . . . . 20 11 Constructs Created 6 | . . . . . 6 Constructs Modified 3 | . . . . . 3 Class Distribution -------------------- 81% | Mutant 8% | Scavenger-Mutant 7% | Derelict-Mutant Dominant Class ---------------- Mutant | -10/Materials Mutant | -10/Mines Mutant | -10/Subcaves Mutant | -8/Recycling Scavenger-Mutant | -6/Factory Resources | -11 -10 -10 -10 -8 -6 ----------- Run | Yrd Mat Min Sub Rec Fac Matter Collected 2008 | 194 152 85 886 90 601 Remotely . | . . . . . . Salvage Created 2789 | 29 124 208 681 317 1430 Parts 144 | 3 10 9 55 12 55 Haulers Intercepted 2 | . . . . . 2 Recyclers Shooed 4 | . . . . 1 3 Parts Field Recycled . | . . . . . . Retrieved Matter . | . . . . . . Parts Self-Destructed 15 | . . . 15 . . Prevented . | . . . . . . Kills | -11 -10 -10 -10 -8 -6 ------- Run | Yrd Mat Min Sub Rec Fac Combat Hostiles Destroyed 46 | . 3 4 14 2 23 Melee 11 | . . . . 2 9 Guns 20 | . 3 4 5 . 8 Cannons 11 | . . . 5 . 6 AOE 4 | . . . 4 . . Classes Destroyed 15 | 1 1 2 4 1 6 Builder 1 | . . . . . 1 Tunneler 1 | 1 . . . . . Hauler 2 | . . . . . 2 Recycler 5 | . . 1 . 3 1 Operator 1 | . . . . . 1 Watcher 1 | . . . . . 1 Swarmer 6 | . . 2 . . 4 Grunt 19 | . 3 2 . . 14 Brawler 2 | . . . . . 2 Sentry 4 | . . . . 2 2 Programmer 1 | . . . . . 1 Artisan 2 | . . . 2 . . Cobbler 1 | . . . 1 . . Subdweller 14 | . . . 14 . . Guerrilla 1 | . . . 1 . . Best Kill Streak 13 | 1 2 2 3 3 13 Combat Bots Only 13 | . 2 2 3 1 13 Max Kills in Single Turn 2 | 1 1 1 1 1 2 Gunslinging . | . . . . . . Exploded 1 | . . . 1 . . Melee 1 | . . . . 1 1 Uniques/NPCs Destroyed . | . . . . . . Combat | -11 -10 -10 -10 -8 -6 -------- Run | Yrd Mat Min Sub Rec Fac Hostile Shots Fired 440 | . 20 19 55 4 342 Missed 136 | . 9 6 23 . 98 Damage Taken 5195 | . 132 171 765 58 4069 Core 1023 | . 11 48 107 . 857 Absorbed by Shields . | . . . . . . Regen/Repaired (Parts) 111 | . . . . 14 97 Core Remaining (%) 66 | 100 . . . 33 . Volleys Fired 233 | 5 14 20 101 2 91 Largest 2 | 2 2 2 2 1 2 Hottest 117 | 40 40 40 117 57 91 Shots Fired 327 | 10 28 40 122 3 124 Gun 212 | 10 28 40 53 . 81 Cannon 76 | . . . 30 3 43 Launcher 15 | . . . 15 . . Special 24 | . . . 24 . . Kinetic 206 | 10 28 40 39 3 86 Thermal 86 | . . . 54 . 32 Explosive 15 | . . . 15 . . Electromagnetic 20 | . . . 14 . 6 Robot Hit Streak 9 | 2 7 8 9 . 8 Robot Miss Streak 4 | 2 1 3 4 2 4 Penetration Max 1 | . . . . . 1 Secondary Targets . | . . . . . . Shots Hit Robots 222 | 5 19 22 66 6 104 Core Hits 109 | 1 8 9 31 3 57 Critical Kills 9 | . . . 5 . 4 Critical Parts Destroyed 9 | . . . 4 1 4 Critical Strikes 27 | . . . 10 2 15 Burn 3 | . . . . . 3 Destroy 20 | . . . 10 1 9 Sever 4 | . . . . 1 3 Melee Attacks 85 | . . . 31 16 38 Impact . | . . . . . . Slashing 85 | . . . 31 16 38 Piercing . | . . . . . . Sneak Attacks 7 | . . . 2 5 . Combat Hostiles 2 | . . . . 2 . Follow-up Attacks . | . . . . . . Damage Inflicted 5371 | 68 207 241 1548 396 2911 Guns 2119 | 68 207 241 488 . 1115 Cannons 922 | . . . 332 10 580 Explosions 762 | . . . 524 . 238 Melee 1453 | . . . 89 386 978 Ramming . | . . . . . . Kinetic 2119 | 68 207 241 440 10 1153 Thermal 998 | . . . 293 . 705 Explosive 473 | . . . 473 . . Electromagnetic 328 | . . . 253 . 75 Impact . | . . . . . . Slashing 1453 | . . . 89 386 978 Piercing . | . . . . . . Highest Corruption 13 | . . . 4 4 13 Average Corruption 1 | . . . 1 4 4 Corruption Purged . | . . . . . . Corruption Blocked . | . . . . . . Effects 46 | . . . 17 24 5 Message Errors 13 | . . . 6 5 2 Matter Fused 12 | . . . 4 6 2 Heat Flow Errors 7 | . . . 3 4 . Energy Discharges 8 | . . . 3 5 . Parts Rejected 1 | . . . . . 1 Data Loss (minor) 1 | . . . . 1 . Data Loss (major) 1 | . . . . 1 . Misfires 1 | . . . . 1 . Alerts 2 | . . . 1 1 . Overload Shots . | . . . . . . Overflow Damage 262 | . . . 68 79 115 Projectiles 19 | . . . 19 . . Explosions 90 | . . . . . 90 Melee 153 | . . . 49 79 25 Knockbacks 5 | . . . 2 . 3 Impact . | . . . . . . Kinetic 5 | . . . 2 . 3 Secondary . | . . . . . . Self-Inflicted Damage 125 | . . . 71 . 54 Shots 3 | . . . 2 . 1 Rammed . | . . . . . . Targets Rammed . | . . . . . . Kicked . | . . . . . . Crushed . | . . . . . . Highest Temperature 281 | . 12 18 241 281 132 Average Temperature 48 | . 7 9 45 88 39 Received Heat Transfer 1707 | . 78 99 132 36 1362 Siege Activations . | . . . . . . Robots Corrupted . | . . . . . . Combat Hostiles . | . . . . . . Parts Fried 1 | . . . 1 . . Impact Corruptions . | . . . . . . Robots Melted . | . . . . . . Combat Hostiles . | . . . . . . Parts Melted . | . . . . . . Heat Transferred 1972 | . . . 625 . 1347 Parts Sabotaged . | . . . . . . Parts Stolen . | . . . . . . Parts Stripped . | . . . . . . Power Chain Reactions 2 | . . . 1 . 1 Missiles Intercepted . | . . . . . . Alert | -11 -10 -10 -10 -8 -6 ------- Run | Yrd Mat Min Sub Rec Fac Peak Influence 1495 | 5 154 170 . 1495 1322 Initial 1281 | . 3 60 . 1281 1167 Average 947 | . 96 136 . 1341 1168 Maximum Alert Level 4 | . . . . 4 4 Low Security (%) 26 | 100 100 100 . . . Level 1 . | . . . . . . Level 2 . | . . . . . . Level 3 5 | . . . . . 13 Level 4 68 | . . . . 100 86 Level 5 . | . . . . . . High Security . | . . . . . . Max Security . | . . . . . . Squads Dispatched 6 | . 1 . . . 5 Investigation 1 | . 1 . . . . Extermination 2 | . . . . . 2 Reinforcement 3 | . . . . . 3 Assault . | . . . . . . Garrison . | . . . . . . Intercept . | . . . . . . Searches Triggered 3 | . . . . . 3 Construction Impeded 1 | . . . . . 1 Haulers Reinforced 1 | . . . . . 1 Active Scanning Responses . | . . . . . . Cargo Convoy Interrupts . | . . . . . . Stealth | -11 -10 -10 -10 -8 -6 --------- Run | Yrd Mat Min Sub Rec Fac Distress Signals 3 | . 1 . . . 2 Communications Jammed . | . . . . . . Distress Signals . | . . . . . . Times Spotted 226 | . 6 5 159 3 53 Peak Tracking Total 14 | . 3 3 3 1 14 Tactical Retreats 21 | . 1 1 10 . 9 Traps | -11 -10 -10 -10 -8 -6 ------- Run | Yrd Mat Min Sub Rec Fac Traps Triggered 1 | . . . 1 . . Indirectly . | . . . . . . Trap Hack Attempts . | . . . . . . Triggered . | . . . . . . Disarmed . | . . . . . . Reprogrammed . | . . . . . . Reused . | . . . . . . Traps Extracted . | . . . . . . Installed 2 | . . . 2 . . Triggered . | . . . . . . Most Traps Carried 1 | . . . 1 . . Machines | -11 -10 -10 -10 -8 -6 ---------- Run | Yrd Mat Min Sub Rec Fac Machines Disabled 3 | . . . 2 1 . Max in Single Turn 1 | . . . 1 1 . Machines Repaired . | . . . . . . Machines Dismantled . | . . . . . . Machines Sabotaged . | . . . . . . Overloaded Fab Kills . | . . . . . . Hacking | -11 -10 -10 -10 -8 -6 --------- Run | Yrd Mat Min Sub Rec Fac Machines Accessed 19 | . 3 . 1 13 2 Terminals 9 | . 1 . . 6 2 Fabricators . | . . . . . . Repair Stations . | . . . . . . Recycling Units 9 | . 2 . . 7 . Scanalyzers . | . . . . . . Garrison Access . | . . . . . . Total Hacks 71 | . 9 . 9 49 4 Successful 41 | . 7 . 9 24 1 Failed 29 | . 1 . . 25 3 Catastrophic 5 | . . . . 5 . Database Lockouts 1 | . 1 . . . . Manual 23 | . 5 . . 16 2 Terminals 36 | . 2 . . 30 4 Fabricators . | . . . . . . Repair Stations . | . . . . . . Recycling Units 26 | . 7 . . 19 . Scanalyzers . | . . . . . . Garrison Access . | . . . . . . Terminal Hacks 20 | . 1 . 9 10 . Record 8 | . . . 8 . . Part Schematic 9 | . . . . 9 . Robot Analysis 1 | . 1 . . . . Prototype ID Bank 1 | . . . . 1 . Derelict Proto ID Bank 1 | . . . 1 . . Fabricator Hacks . | . . . . . . Repair Station Hacks . | . . . . . . Recycling Unit Hacks 12 | . 4 . . 8 . Report Inventory 9 | . 2 . . 7 . Retrieve Components 3 | . 2 . . 1 . Scanalyzer . | . . . . . . Garrison Access Hacks . | . . . . . . Unauthorized Hacks 9 | . 2 . . 6 1 Terminals 3 | . . . . 2 1 Track 1 | . . . . . 1 Botnet 2 | . . . . 2 . Fabricators . | . . . . . . Repair Stations . | . . . . . . Recycling Units 6 | . 2 . . 4 . Mask 1 | . 1 . . . . Tunnel 5 | . 1 . . 4 . Scanalyzers . | . . . . . . Garrison Access . | . . . . . . Data Cores Recovered . | . . . . . . Used . | . . . . . . Hacking Detections 16 | . 3 . . 11 2 Full Trace Events 9 | . . . . 9 . Feedback Events . | . . . . . . Feedback Blocked . | . . . . . . Robot Schematics Acquired . | . . . . . . Robots Built . | . . . . . . Authchips . | . . . . . . Time . | . . . . . . Total Robot Build Rating . | . . . . . . Part Schematics Acquired 9 | . . . . 9 . Parts Built . | . . . . . . Authchips . | . . . . . . Time . | . . . . . . Total Part Build Rating . | . . . . . . Parts Repaired . | . . . . . . Time . | . . . . . . Parts Recycled . | . . . . . . Recycled Matter . | . . . . . . Retrieved Matter . | . . . . . . Retrieved Components 9 | . 6 . . 3 . Parts Scanalyzed . | . . . . . . Part Schematics Acquired . | . . . . . . Parts Damaged . | . . . . . . Bothacking | -11 -10 -10 -10 -8 -6 ------------ Run | Yrd Mat Min Sub Rec Fac Used RIF Installer . | . . . . . . Robots Hacked . | . . . . . . Non-combat . | . . . . . . Combat . | . . . . . . Robot Hacks Applied . | . . . . . . Relay Couplers Released . | . . . . . . Fabnet Peak Effective % . | . . . . . . Robots Rewired . | . . . . . . Allies Hacked . | . . . . . . Hacks Repelled . | . . . . . . Allies | -11 -10 -10 -10 -8 -6 -------- Run | Yrd Mat Min Sub Rec Fac Total Allies 3 | . . . 3 . . Largest Group 2 | . . . 2 2 2 Highest-Rated Group 86 | . . . 86 86 86 Highest-Rated Ally 45 | . . . 45 45 45 Total Orders . | . . . . . . Ally Attacks 77 | . . . 13 3 61 Total Damage 1644 | . . . 210 108 1326 Kills 10 | . . . 3 2 5 Allies Corrupted 1 | . . . . . 1 Allies Melted . | . . . . . . Intel | -11 -10 -10 -10 -8 -6 ------- Run | Yrd Mat Min Sub Rec Fac Robot Analysis Total 1 | . 1 . . . . Derelict Logs Recovered 1 | . . . 1 . . Drone Launches . | . . . . . . Drone Recoveries . | . . . . . . Exploration | -11 -10 -10 -10 -8 -6 ------------- Run | Yrd Mat Min Sub Rec Fac Turns Passed 7422 | 75 215 460 4606 982 1084 Spaces Moved 4738 | 51 135 179 3121 708 544 Core 5 | 5 . . . . . Treads 84 | . . 73 6 . 5 Legs 4196 | . . . 2949 708 539 Wheels 453 | 46 135 106 166 . . Hover . | . . . . . . Flight . | . . . . . . Fastest Speed 50 | 50 95 95 95 130 120 Average Speed 127 | 86 95 121 128 130 129 Slowest Speed 160 | 95 95 160 160 130 155 Overloaded Moves . | . . . . . . Propulsion Burnouts . | . . . . . . Robots Hopped . | . . . . . . Cave-ins Triggered . | . . . . . . Exploration Rate (%) 47 | 3 23 47 97 99 17 Regions Visited 5 Branch Regions 3 Pre-discovered Areas 5 | . 1 . . 4 . Known Exits Taken . | . . . . . . Unknown Exits Taken 5 | 1 1 1 1 1 . Scrap Searched 18 | . . . 18 . . Spaces Dug 21 | . . . 21 . . Terrain Destroyed 92 | . . . 81 2 9 Melee . | . . . . . . Projectile 17 | . . . 6 2 9 AOE 75 | . . . 75 . . Terrain Rammed . | . . . . . . Walls Destroyed . | . . . . . . Machines Disabled . | . . . . . . Actions | -11 -10 -10 -10 -8 -6 --------- Run | Yrd Mat Min Sub Rec Fac Total 5769 | 69 197 385 3586 758 774 Wait 475 | 3 42 183 182 13 52 Move 4733 | 50 134 178 3120 707 544 Hop . | . . . . . . Pick Up 88 | 4 5 1 61 7 10 Fast Attach 33 | 7 . 1 12 1 12 Attach 14 | . . . 6 . 8 Detach 2 | . . . 1 . 1 Swap 12 | . . 1 6 . 5 Drop 91 | . 2 1 63 12 13 Fire 233 | 5 14 20 101 2 91 Melee 85 | . . . 31 16 38 Ram . | . . . . . . Kick . | . . . . . . Crush . | . . . . . . Escape Stasis . | . . . . . . Rewire 1 | . . . 1 . . Trap 2 | . . . 2 . . Miscellaneous . | . . . . . . Route ------- -11/Scrapyard -10/Materials (discovered 2 exits: [Mat] / [*Min]) -10/Mines (discovered 2 exits: [*Mat] / *Sub) -10/Subcaves (discovered 3 exits: [*Mat x2] / *Rec) -8/Recycling -6/Factory History --------- Turn | Location | Event 12 | -11/Scrapyard | Discovered new exit (range 15) 76 | -11/Scrapyard | Entered Materials 192 | -10/Materials | Discovered new exit (range 7) 253 | -10/Materials | Central database locked down 270 | -10/Materials | Discovered new exit (range 14) 291 | -10/Materials | Entered Mines 297 | -10/Mines | Discovered new exit (range 11) 301 | -10/Mines | Build established: Mutant 458 | -10/Mines | Received a Rocket Launcher from a helpful Derelict 743 | -10/Mines | Discovered new exit (range 5) 751 | -10/Mines | Entered Subcaves 853 | -10/Subcaves | Disturbed a concealed Subdweller 879 | -10/Subcaves | A swath of the cavern ceiling suddenly collapsed 937 | -10/Subcaves | Learned Materials security intel 941 | -10/Subcaves | Visited 4L-MR0's lab 955 | -10/Subcaves | Found Cargo Legs 956 | -10/Subcaves | Attached Cargo Legs, gained temporary slots: Utility x2 1019 | -10/Subcaves | Found Botcube 1382 | -10/Subcaves | Botcube activated 1396 | -10/Subcaves | Botcube completed mutation into treaded form, armed with 1 special weapon. 1584 | -10/Subcaves | Build established: Derelict-Mutant 1865 | -10/Subcaves | Core integrity fell below 50% 2140 | -10/Subcaves | Build established: Mutant 2259 | -10/Subcaves | A swath of the cavern ceiling suddenly collapsed 2487 | -10/Subcaves | Ambushed by Subdwellers from Twisted Machinery 2562 | -10/Subcaves | Shifting Twisted Machinery released Battle Cannon 2573 | -10/Subcaves | Shifting Twisted Machinery released Sub. Laser 2636 | -10/Subcaves | Discovered new exit (range 12) 2668 | -10/Subcaves | Disturbed a concealed Subdweller 2680 | -10/Subcaves | Discovered new exit (range 15) 2751 | -10/Subcaves | Found Botcube 3400 | -10/Subcaves | Shifting Twisted Machinery released Mak. Axe 3401 | -10/Subcaves | Shifting Twisted Machinery released Sub. Power Source 3402 | -10/Subcaves | Discovered new exit (range 5) 3787 | -10/Subcaves | Botcube activated 3803 | -10/Subcaves | Botcube completed mutation into wheeled form, armed with 2 guns. 5287 | -10/Subcaves | Botcube activated 5307 | -10/Subcaves | Botcube completed mutation into wheeled form, armed with 2 cannons. 5357 | -10/Subcaves | Entered Recycling 5357 | -8/Recycling | Accompanied by 2 allies 5372 | -8/Recycling | Found Scrap Engine 5750 | -8/Recycling | Discovered new exit (range 16) 6339 | -8/Recycling | Entered Factory 6339 | -6/Factory | Accompanied by 2 allies 6339 | -6/Factory | Evolved 8 slots: Utility x8 6689 | -6/Factory | Search patrols dispatched 6940 | -6/Factory | Build established: Scavenger-Mutant 7039 | -6/Factory | Search patrols dispatched 7187 | -6/Factory | Found Prototype Launcher 7187 | -6/Factory | Identified Rocket Array 7307 | -6/Factory | Core integrity fell below 50% 7364 | -6/Factory | Core integrity fell below 20% 7376 | -6/Factory | Destroyed 13 combat bots 7389 | -6/Factory | Search patrols dispatched 7398 | -6/Factory | Lost 19 parts (4p3n7u5w) 7402 | -6/Factory | System corruption reached 10% 7423 | -6/Factory | Destroyed by P-60 Hacker with Shock Rifle Last Messages --------------- 07356_ Critical hit (Burn: +37). 07365_ Momentum-Deuterium Engine destroyed. 07365_ Scrap Engine damaged due to network destabilization (-6). 07367_ VSS Exoskeleton destroyed. 07367_ Scrap Engine damaged due to network destabilization (-5). 07373_ Destroyed Carbon-fiber Leg. 07376_ G-50 Soldier destroyed. 07387_ Critical hit (Burn: +37). 07389_ ALERT: Heightened foreign activity detected, multiple search patrols dispatched. 07389_ G-50 Soldier destroyed. 07390_ Acquired 1 matter. 07392_ Scrap Engine consumes Lgt. Angular Momentum Engine. 07394_ Scrap Engine consumes Carbon-fiber Leg. 07396_ LB&D%YKWF6L8%XH/CBJ3DJGT 07401_ Scrap Engine consumes Carbon-fiber Leg. 07401_ Mak. Axe destroyed. 07405_ Acquired Autogun. 07412_ System corrupted: Microactuators rejected. 07423_ Myomer Leg destroyed. Map ----- +----------------------------------------------------+ | ?????????????????????????????????????????????????? | | ?????????????????????????????????????????????????? | | ?????????????????????????????????????????????????? | | ?????????????????????????????????????????????????? | | ?????????????????????????????????????????????????? | | ?????????????????????????????????????????????????? | | ?????????????????????????????????????????????????? | | ?????????????????????????????????????????????????? | | ?????????????????????????????????????????????????? | | ?????????????????????????????????????????????????? | | ?????????????????????????????????????????????????? | | ?????????????????????????????????????????????????? | | ?????????????????????????????????????????????????? | | ?????????????????????????????????????????????????? | | ?????????????????????????????????????????????????? | | ?????????????????????????????????????????????????? | | ?????????????????????????????????????????????????? | | ?????????????????????????????????????????????????? | | ???????????????#####????????##???????????????????? | | ???????????????# ?##############?????????????? | | ?????????????????"" # #?????????????? | | ??????????????????? # #?????????????? | | ?????????????????????!+% % #?????????????? | | ??????????????????????#p = #?????????????? | | ??????????????????????# #?????????????? | | ??????????????????????#=%@ #?????????????? | | ??????????????????????# * *% #?????????????? | | ????????????????? ????# *%= /= #?????????????? | | ???????????????? ""??#**!*!== #?????????????? | | ???????????????# """[#=%!%=%% #?????????????? | | ???????????????# """=+*! % % ** #?????????????? | | ???????????????# """ #=%=% %= * #?????????????? | | ???????????????? ????####+##+######?????????????? | | ???????????????###########% " #?? ??????????? | | ???????????????# ! ! # " #? ?????????? | | ???????????????# # # ??????????? | | ??????????? + + # ????????????? | | ???????????????# % # + ??????????????? | | ???????????????# """ """ # # ??????????????? | | ?????????????????""" """ + #? ????????????? | | ???????????????# """ """ # #?? ???????????? | | ???????????????# % !%& # #???????????????? | | ???????????????# """ """ # #???????????????? | | ?????????????????""" """ # #???????????????? | | ???????????????# """ """ # #???????????????? | | ????????? ???? "%" # #???????????????? | | ???????? ????""" """ + #???????????????? | | ???????? ?????" """ # #???????????????? | | ???????# ?????" """ # #???????????????? | | ???????# ????? # #???????????????? | +----------------------------------------------------+ Best States ------------- Heat Dissipation 56 Energy Generation 19 Energy Capacity 315 Matter Stores 300 Matter Capacity 300 Sight Range 21 Robot Scan Range 15 Terrain Scan Range 16 Terrain Scan Density 10 Armor Coverage 225 Melee Speed Boost 20 Evasion (%) 55 Melee Accuracy 6 Core Analysis 6 Armor Integrity Analysis 30 Recoil Reduction 1 Matter Filtering 30 Item Schematics ----------------- Pulse Rifle | -8/Recycling | Hacked Cargo Storage Unit | -8/Recycling | Hacked Katana | -8/Recycling | Hacked Hacking Suite | -8/Recycling | Hacked Carbide Saw | -8/Recycling | Hacked Adv. Treads | -8/Recycling | Hacked Arm. Treads | -8/Recycling | Hacked Adv. Terrain Scan Processor | -8/Recycling | Hacked Imp. Signal Interpreter | -8/Recycling | Hacked Robot Schematics ------------------ None Fabricated ------------ Nothing Alien Tech Used ----------------- None Achievements -------------- None Challenges ------------ None Game ------ Seed ThunderGhostNukerbomber Manual? 0 Play Time 01:15:05 Cumulative 507.1 hours Start 2024.01.28 @ 10:49:28 End 2024.01.28 @ 12:08:42 Sessions 1 Manual Loads 0 Difficulty Rogue Special Mode None Game No. 196 Rogue 185 Adventurer 3 Explorer 8 Win Type - Total 9 Types 5/2/0/1/0/1/0/0/0 Lore% 82 Gallery% 91 Achievement% 80 Wizard Run 0 Options --------- ASCII 0 Keyboard 0 Movement Numpad Keybinds 0 Fullscreen 1 Font 18/SmallcapsGlow Map View 76x50 Zoom Use 0% Tactical HUD 1 Map Filters NONE Filters NONE Steam 1 RUN: 2f094935-5651-4a95-b11c-a4b7f8c3fbc0